[Event "Titled Tuesday Blitz August 22 Late 2023"]
[White "Seresin, Francesco"]
[Black "only_strong_moves"]
[WhiteFideId "886335"]
[WhiteElo "2386"]
[BlackElo "2510"]
[Result "1-0"]
[Round "11"]
[TimeControl "180+1"]
[Date "2023.08.22"]
[WhiteClock "0:00:30"]
[BlackClock "0:01:09"]
[Board "70"]

1. d4 {[%clk 0:02:54]}  h6 {[%clk 0:02:59]} 2. c4 {[%clk 0:02:54]}  e6 {[%clk 0:02:59]} 3. Nc3 {[%clk 0:02:54]}  d5 {[%clk 0:03:00]} 4. Nf3 {[%clk 0:02:52]}  Nf6 {[%clk 0:02:59]} 5. Bf4 {[%clk 0:02:46]}  c5 {[%clk 0:02:52]} 6. e3 {[%clk 0:02:44]}  a6 {[%clk 0:02:49]} 7. Be2 {[%clk 0:02:34]}  Nc6 {[%clk 0:02:49]} 8. cxd5 {[%clk 0:02:32]}  Nxd5 {[%clk 0:02:47]} 9. Nxd5 {[%clk 0:02:32]}  Qxd5 {[%clk 0:02:46]} 10. dxc5 {[%clk 0:02:31]}  Qxd1+ {[%clk 0:02:42]} 11. Rxd1 {[%clk 0:02:30]}  Bxc5 {[%clk 0:02:43]} 12. O-O {[%clk 0:02:27]}  Ke7 {[%clk 0:02:34]} 13. a3 {[%clk 0:02:27]}  Rd8 {[%clk 0:02:29]} 14. b4 {[%clk 0:02:26]}  Bd6 {[%clk 0:02:25]} 15. Bxd6+ {[%clk 0:02:26]}  Rxd6 {[%clk 0:02:26]} 16. Rxd6 {[%clk 0:02:26]}  Kxd6 {[%clk 0:02:27]} 17. Rd1+ {[%clk 0:02:26]}  Ke7 {[%clk 0:02:27]} 18. Nd2 {[%clk 0:02:19]}  Bd7 {[%clk 0:02:16]} 19. Nc4 {[%clk 0:02:18]}  Rd8 {[%clk 0:02:10]} 20. Bf3 {[%clk 0:02:18]}  b5 {[%clk 0:01:39]} 21. Bxc6 {[%clk 0:01:50]}  bxc4 {[%clk 0:01:39]} 22. Rxd7+ {[%clk 0:00:40]}  Rxd7 {[%clk 0:01:39]} 23. Bxd7 {[%clk 0:00:41]}  Kxd7 {[%clk 0:01:40]} 24. Kf1 {[%clk 0:00:40]}  Kc6 {[%clk 0:01:41]} 25. a4 {[%clk 0:00:38]}  Kd5 {[%clk 0:01:16]} 26. Ke2 {[%clk 0:00:38]}  c3 {[%clk 0:01:07]} 27. Kd3 {[%clk 0:00:22]}  c2 {[%clk 0:01:07]} 28. Kxc2 {[%clk 0:00:22]}  Kc4 {[%clk 0:01:07]} 29. b5 {[%clk 0:00:19]}  axb5 {[%clk 0:01:08]} 30. a5 {[%clk 0:00:20]}  Kc5 {[%clk 0:01:08]} 31. Kb3 {[%clk 0:00:20]}  b4 {[%clk 0:01:03]} 32. a6 {[%clk 0:00:20]}  Kb6 {[%clk 0:01:03]} 33. Kxb4 {[%clk 0:00:20]}  Kxa6 {[%clk 0:01:04]} 34. Kc5 {[%clk 0:00:21]}  Kb7 {[%clk 0:01:03]} 35. Kd6 {[%clk 0:00:21]}  Kb6 {[%clk 0:01:02]} 36. Ke7 {[%clk 0:00:22]}  e5 {[%clk 0:01:01]} 37. Kxf7 {[%clk 0:00:22]}  g5 {[%clk 0:01:02]} 38. Kg6 {[%clk 0:00:22]}  e4 {[%clk 0:01:03]} 39. Kxh6 {[%clk 0:00:22]}  Kc5 {[%clk 0:01:04]} 40. Kxg5 {[%clk 0:00:22]}  Kd5 {[%clk 0:01:04]} 41. Kf4 {[%clk 0:00:22]}  Kd6 {[%clk 0:01:05]} 42. Kxe4 {[%clk 0:00:23]}  Ke6 {[%clk 0:01:06]} 43. Kf4 {[%clk 0:00:23]}  Kd6 {[%clk 0:01:07]} 44. g4 {[%clk 0:00:24]}  Ke6 {[%clk 0:01:07]} 45. h4 {[%clk 0:00:25]}  Kd6 {[%clk 0:01:08]} 46. h5 {[%clk 0:00:26]}  Ke6 {[%clk 0:01:09]} 47. h6 {[%clk 0:00:27]}  Kd5 {[%clk 0:01:01]} 48. g5 {[%clk 0:00:27]}  Kc4 {[%clk 0:01:00]} 49. h7 {[%clk 0:00:28]}  Kd3 {[%clk 0:01:00]} 50. h8=Q {[%clk 0:00:28]}  Ke2 {[%clk 0:01:01]} 51. g6 {[%clk 0:00:28]}  Kf1 {[%clk 0:01:02]} 52. g7 {[%clk 0:00:29]}  Ke2 {[%clk 0:01:03]} 53. g8=Q {[%clk 0:00:29]}  Ke1 {[%clk 0:01:04]} 54. e4 {[%clk 0:00:29]}  Ke2 {[%clk 0:01:04]} 55. e5 {[%clk 0:00:30]}  Ke1 {[%clk 0:01:05]} 56. Ke4 {[%clk 0:00:30]}  Ke2 {[%clk 0:01:06]} 57. f3 {[%clk 0:00:30]}  Ke1 {[%clk 0:01:07]} 58. f4 {[%clk 0:00:31]}  Ke2 {[%clk 0:01:08]} 59. Qg2+ {[%clk 0:00:31]}  Ke1 {[%clk 0:01:09]} 60. Qhh1# {[%clk 0:00:30]} 1-0


[Site "https://www.chess.com"]

[Event "Titled Tuesday Blitz August 22 Late 2023"]
[White "Itkis, Boris"]
[Black "Filip, Andrei"]
[WhiteFideId "1209167"]
[BlackFideId "1249452"]
[WhiteElo "2487"]
[BlackElo "2378"]
[Result "0-1"]
[Round "11"]
[TimeControl "180+1"]
[Date "2023.08.22"]
[WhiteClock "0:00:25"]
[BlackClock "0:00:26"]
[Board "71"]

1. d4 {[%clk 0:03:00]}  Nf6 {[%clk 0:02:58]} 2. Nc3 {[%clk 0:03:01]}  d5 {[%clk 0:02:57]} 3. Bf4 {[%clk 0:03:01]}  c6 {[%clk 0:02:57]} 4. e3 {[%clk 0:03:01]}  g6 {[%clk 0:02:53]} 5. h3 {[%clk 0:02:52]}  Bg7 {[%clk 0:02:53]} 6. Nf3 {[%clk 0:02:51]}  O-O {[%clk 0:02:51]} 7. Be2 {[%clk 0:02:46]}  Na6 {[%clk 0:02:47]} 8. Bxa6 {[%clk 0:02:45]}  bxa6 {[%clk 0:02:47]} 9. Ne5 {[%clk 0:02:45]}  Qb6 {[%clk 0:02:40]} 10. Na4 {[%clk 0:02:43]}  Qa5+ {[%clk 0:02:35]} 11. c3 {[%clk 0:02:43]}  Bd7 {[%clk 0:02:29]} 12. Nc5 {[%clk 0:02:43]}  Be8 {[%clk 0:02:24]} 13. b4 {[%clk 0:02:39]}  Qb6 {[%clk 0:02:17]} 14. Qa4 {[%clk 0:02:35]}  Qb5 {[%clk 0:02:11]} 15. Qxa6 {[%clk 0:02:32]}  Ne4 {[%clk 0:02:04]} 16. Qxb5 {[%clk 0:02:14]}  cxb5 {[%clk 0:02:04]} 17. Nxe4 {[%clk 0:02:13]}  dxe4 {[%clk 0:02:05]} 18. Kd2 {[%clk 0:02:09]}  f6 {[%clk 0:01:58]} 19. Ng4 {[%clk 0:02:02]}  h5 {[%clk 0:01:57]} 20. Nh2 {[%clk 0:02:02]}  e5 {[%clk 0:01:41]} 21. Bg3 {[%clk 0:02:01]}  exd4 {[%clk 0:01:28]} 22. cxd4 {[%clk 0:01:59]}  Bf7 {[%clk 0:01:27]} 23. Bd6 {[%clk 0:01:56]}  Rfc8 {[%clk 0:01:26]} 24. Bc5 {[%clk 0:01:56]}  a5 {[%clk 0:01:20]} 25. a3 {[%clk 0:01:56]}  a4 {[%clk 0:01:20]} 26. Rhc1 {[%clk 0:01:55]}  Bb3 {[%clk 0:01:14]} 27. Nf1 {[%clk 0:01:54]}  Kf7 {[%clk 0:01:14]} 28. Ng3 {[%clk 0:01:55]}  f5 {[%clk 0:01:13]} 29. Ne2 {[%clk 0:01:54]}  g5 {[%clk 0:01:09]} 30. Rc3 {[%clk 0:01:54]}  Bc4 {[%clk 0:01:05]} 31. Rac1 {[%clk 0:01:51]}  Ke6 {[%clk 0:01:03]} 32. Ke1 {[%clk 0:01:49]}  Bf6 {[%clk 0:00:56]} 33. Ng3 {[%clk 0:01:47]}  Rh8 {[%clk 0:00:54]} 34. Nf1 {[%clk 0:01:46]}  g4 {[%clk 0:00:49]} 35. Nd2 {[%clk 0:01:44]}  Bd3 {[%clk 0:00:48]} 36. Bb6 {[%clk 0:01:37]}  gxh3 {[%clk 0:00:48]} 37. gxh3 {[%clk 0:01:37]}  Rhg8 {[%clk 0:00:48]} 38. Rc6+ {[%clk 0:01:37]}  Kf7 {[%clk 0:00:47]} 39. Rc7+ {[%clk 0:01:25]}  Be7 {[%clk 0:00:47]} 40. f3 {[%clk 0:01:19]}  Rg1+ {[%clk 0:00:35]} 41. Kf2 {[%clk 0:01:19]}  Rxc1 {[%clk 0:00:35]} 42. Rxc1 {[%clk 0:01:18]}  Rg8 {[%clk 0:00:32]} 43. fxe4 {[%clk 0:01:03]}  fxe4 {[%clk 0:00:31]} 44. Rc7 {[%clk 0:01:02]}  Ke6 {[%clk 0:00:31]} 45. Rxe7+ {[%clk 0:00:26]}  Kxe7 {[%clk 0:00:31]} 46. Bc5+ {[%clk 0:00:27]}  Ke6 {[%clk 0:00:31]} 47. Nf1 {[%clk 0:00:26]}  Bxf1 {[%clk 0:00:26]} 48. Kxf1 {[%clk 0:00:25]}  Rg3 {[%clk 0:00:26]} 0-1


[Site "https://www.chess.com"]

[Event "Titled Tuesday Blitz August 22 Late 2023"]
[White "Fajdetic, Hrvoje"]
[Black "Cheng, Xiao"]
[WhiteFideId "14501945"]
[BlackFideId "2022915"]
[WhiteElo "2296"]
[BlackElo "2481"]
[Result "0-1"]
[Round "11"]
[TimeControl "180+1"]
[Date "2023.08.22"]
[WhiteClock "0:00:00"]
[BlackClock "0:01:25"]
[Board "72"]

1. f4 {[%clk 0:02:56]}  d5 {[%clk 0:02:57]} 2. b3 {[%clk 0:02:54]}  Nf6 {[%clk 0:02:56]} 3. Bb2 {[%clk 0:02:54]}  c5 {[%clk 0:02:56]} 4. Nf3 {[%clk 0:02:53]}  Nc6 {[%clk 0:02:57]} 5. e3 {[%clk 0:02:53]}  Bg4 {[%clk 0:02:57]} 6. Bb5 {[%clk 0:02:52]}  e6 {[%clk 0:02:58]} 7. Bxc6+ {[%clk 0:02:52]}  bxc6 {[%clk 0:02:57]} 8. d3 {[%clk 0:02:50]}  Bd6 {[%clk 0:02:54]} 9. O-O {[%clk 0:02:49]}  O-O {[%clk 0:02:54]} 10. Nbd2 {[%clk 0:02:47]}  d4 {[%clk 0:02:52]} 11. Qe1 {[%clk 0:02:07]}  dxe3 {[%clk 0:02:48]} 12. Nc4 {[%clk 0:01:48]}  Bxf4 {[%clk 0:02:27]} 13. Nfe5 {[%clk 0:01:44]}  Bxe5 {[%clk 0:02:16]} 14. Nxe5 {[%clk 0:01:43]}  e2 {[%clk 0:02:13]} 15. Rf4 {[%clk 0:01:28]}  Bh5 {[%clk 0:02:13]} 16. Nxc6 {[%clk 0:01:24]}  Qd6 {[%clk 0:02:11]} 17. Ne5 {[%clk 0:01:11]}  Nd5 {[%clk 0:02:10]} 18. Rh4 {[%clk 0:01:07]}  Bg6 {[%clk 0:02:09]} 19. Qxe2 {[%clk 0:01:02]}  f6 {[%clk 0:02:06]} 20. Nxg6 {[%clk 0:01:00]}  hxg6 {[%clk 0:02:07]} 21. Qg4 {[%clk 0:00:39]}  Kf7 {[%clk 0:02:06]} 22. Re1 {[%clk 0:00:27]}  Rh8 {[%clk 0:02:03]} 23. Rxh8 {[%clk 0:00:21]}  Rxh8 {[%clk 0:02:01]} 24. h3 {[%clk 0:00:20]}  g5 {[%clk 0:01:57]} 25. Bc1 {[%clk 0:00:17]}  Rh4 {[%clk 0:01:57]} 26. Qf3 {[%clk 0:00:15]}  Nf4 {[%clk 0:01:56]} 27. Bxf4 {[%clk 0:00:15]}  Rxf4 {[%clk 0:01:55]} 28. Qb7+ {[%clk 0:00:14]}  Kg6 {[%clk 0:01:55]} 29. Qc8 {[%clk 0:00:13]}  Qd4+ {[%clk 0:01:51]} 30. Kh1 {[%clk 0:00:13]}  g4 {[%clk 0:01:27]} 31. Qe8+ {[%clk 0:00:09]}  Kg5 {[%clk 0:01:27]} 32. Qxe6 {[%clk 0:00:00]}  Qf2 {[%clk 0:01:25]} 0-1


[Site "https://www.chess.com"]

[Event "Titled Tuesday Blitz August 22 Late 2023"]
[White "Seletsky, Grigory"]
[Black "Osmonbekov, Talaibek"]
[WhiteFideId "14112191"]
[BlackFideId "2017253"]
[WhiteElo "2473"]
[BlackElo "2232"]
[Result "1-0"]
[Round "11"]
[TimeControl "180+1"]
[Date "2023.08.22"]
[WhiteClock "0:00:08"]
[BlackClock "0:00:00"]
[Board "74"]

1. e4 {[%clk 0:02:52]}  c5 {[%clk 0:02:58]} 2. Nc3 {[%clk 0:02:51]}  Nc6 {[%clk 0:02:58]} 3. d3 {[%clk 0:02:51]}  g6 {[%clk 0:02:57]} 4. Be3 {[%clk 0:02:51]}  Bg7 {[%clk 0:02:58]} 5. Bxc5 {[%clk 0:02:50]}  Qa5 {[%clk 0:02:51]} 6. Be3 {[%clk 0:02:48]}  Bxc3+ {[%clk 0:02:50]} 7. bxc3 {[%clk 0:02:49]}  Qxc3+ {[%clk 0:02:51]} 8. Bd2 {[%clk 0:02:49]}  Qg7 {[%clk 0:02:48]} 9. f4 {[%clk 0:02:45]}  Nd4 {[%clk 0:02:48]} 10. Rb1 {[%clk 0:02:33]}  e5 {[%clk 0:02:41]} 11. fxe5 {[%clk 0:02:31]}  Qxe5 {[%clk 0:02:37]} 12. Nf3 {[%clk 0:02:30]}  Nxf3+ {[%clk 0:02:37]} 13. Qxf3 {[%clk 0:02:29]}  Ne7 {[%clk 0:02:33]} 14. Be2 {[%clk 0:02:26]}  O-O {[%clk 0:02:33]} 15. O-O {[%clk 0:02:26]}  d5 {[%clk 0:02:26]} 16. Bh6 {[%clk 0:02:19]}  dxe4 {[%clk 0:02:18]} 17. dxe4 {[%clk 0:02:17]}  Be6 {[%clk 0:02:04]} 18. Bxf8 {[%clk 0:02:02]}  Rxf8 {[%clk 0:02:05]} 19. Rxb7 {[%clk 0:02:01]}  Bxa2 {[%clk 0:02:05]} 20. Rxa7 {[%clk 0:02:00]}  Qe6 {[%clk 0:01:34]} 21. Bd3 {[%clk 0:01:57]}  Nc6 {[%clk 0:01:31]} 22. Ra3 {[%clk 0:01:41]}  Ne5 {[%clk 0:01:28]} 23. Qf6 {[%clk 0:01:37]}  Qxf6 {[%clk 0:01:07]} 24. Rxf6 {[%clk 0:01:35]}  Kg7 {[%clk 0:01:08]} 25. Rd6 {[%clk 0:01:20]}  Be6 {[%clk 0:01:08]} 26. h3 {[%clk 0:01:19]}  h5 {[%clk 0:01:06]} 27. Kf2 {[%clk 0:01:19]}  Rb8 {[%clk 0:01:00]} 28. Ke3 {[%clk 0:01:18]}  Rb4 {[%clk 0:00:49]} 29. Rc3 {[%clk 0:01:15]}  g5 {[%clk 0:00:43]} 30. Rc5 {[%clk 0:01:12]}  Kf6 {[%clk 0:00:40]} 31. Rxe5 {[%clk 0:00:51]}  Kxe5 {[%clk 0:00:38]} 32. Ra6 {[%clk 0:00:48]}  h4 {[%clk 0:00:25]} 33. Ra5+ {[%clk 0:00:48]}  Kf6 {[%clk 0:00:25]} 34. e5+ {[%clk 0:00:46]}  Kg7 {[%clk 0:00:25]} 35. Be4 {[%clk 0:00:43]}  Rc4 {[%clk 0:00:19]} 36. Ra3 {[%clk 0:00:36]}  Kh6 {[%clk 0:00:17]} 37. Ra8 {[%clk 0:00:23]}  Kg7 {[%clk 0:00:17]} 38. Rd8 {[%clk 0:00:21]}  Rc3+ {[%clk 0:00:17]} 39. Kd2 {[%clk 0:00:19]}  Rc5 {[%clk 0:00:15]} 40. Rd4 {[%clk 0:00:16]}  Rxe5 {[%clk 0:00:15]} 41. Kd3 {[%clk 0:00:16]}  Ra5 {[%clk 0:00:15]} 42. c4 {[%clk 0:00:16]}  Ra3+ {[%clk 0:00:15]} 43. Kc2 {[%clk 0:00:16]}  Ra2+ {[%clk 0:00:14]} 44. Kc3 {[%clk 0:00:16]}  Ra1 {[%clk 0:00:12]} 45. c5 {[%clk 0:00:15]}  Rc1+ {[%clk 0:00:12]} 46. Kb4 {[%clk 0:00:15]}  f5 {[%clk 0:00:11]} 47. Bd5 {[%clk 0:00:13]}  Bc8 {[%clk 0:00:09]} 48. c6 {[%clk 0:00:12]}  Kf6 {[%clk 0:00:08]} 49. Rc4 {[%clk 0:00:12]}  Rb1+ {[%clk 0:00:07]} 50. Kc5 {[%clk 0:00:12]}  Ke5 {[%clk 0:00:08]} 51. Rc2 {[%clk 0:00:12]}  Re1 {[%clk 0:00:06]} 52. c7 {[%clk 0:00:10]}  g4 {[%clk 0:00:06]} 53. Rb2 {[%clk 0:00:10]}  Rc1+ {[%clk 0:00:05]} 54. Bc4 {[%clk 0:00:09]}  Be6 {[%clk 0:00:05]} 55. Re2+ {[%clk 0:00:08]}  Kf4 {[%clk 0:00:03]} 56. Rxe6 {[%clk 0:00:09]}  gxh3 {[%clk 0:00:03]} 57. gxh3 {[%clk 0:00:08]}  Kg3 {[%clk 0:00:02]} 58. c8=Q {[%clk 0:00:08]}  Kxh3 {[%clk 0:00:00]} 59. Rg6 {[%clk 0:00:08]} 1-0


[Site "https://www.chess.com"]

[Event "Titled Tuesday Blitz August 22 Late 2023"]
[White "Tanenbaum, Zachary"]
[Black "Arnold, Ken"]
[WhiteFideId "2060850"]
[BlackFideId "2056836"]
[WhiteElo "2670"]
[BlackElo "2416"]
[Result "0-1"]
[Round "11"]
[TimeControl "180+1"]
[Date "2023.08.22"]
[WhiteClock "0:00:14"]
[BlackClock "0:01:00"]
[Board "76"]

1. e4 {[%clk 0:03:00]}  c6 {[%clk 0:02:59]} 2. d4 {[%clk 0:03:00]}  d5 {[%clk 0:03:00]} 3. exd5 {[%clk 0:03:01]}  cxd5 {[%clk 0:03:00]} 4. Bd3 {[%clk 0:03:02]}  Nf6 {[%clk 0:03:00]} 5. c3 {[%clk 0:03:03]}  Nc6 {[%clk 0:03:01]} 6. Bf4 {[%clk 0:03:03]}  e6 {[%clk 0:02:59]} 7. Nf3 {[%clk 0:03:02]}  Bd6 {[%clk 0:02:59]} 8. Bg3 {[%clk 0:03:03]}  O-O {[%clk 0:02:59]} 9. Nbd2 {[%clk 0:03:03]}  b6 {[%clk 0:02:58]} 10. O-O {[%clk 0:03:04]}  Bxg3 {[%clk 0:02:57]} 11. hxg3 {[%clk 0:03:04]}  Bb7 {[%clk 0:02:54]} 12. Ne5 {[%clk 0:03:04]}  Nxe5 {[%clk 0:02:53]} 13. dxe5 {[%clk 0:03:05]}  Ne4 {[%clk 0:02:51]} 14. Bxe4 {[%clk 0:03:00]}  dxe4 {[%clk 0:02:50]} 15. Re1 {[%clk 0:03:00]}  Qd5 {[%clk 0:02:47]} 16. Nxe4 {[%clk 0:02:50]}  Qxe5 {[%clk 0:02:46]} 17. Nd6 {[%clk 0:02:39]}  Qd5 {[%clk 0:02:37]} 18. Nxb7 {[%clk 0:02:38]}  Qxb7 {[%clk 0:02:36]} 19. Qg4 {[%clk 0:02:32]}  Rfd8 {[%clk 0:02:33]} 20. Re2 {[%clk 0:02:30]}  Rd5 {[%clk 0:02:29]} 21. Rae1 {[%clk 0:02:30]}  Rad8 {[%clk 0:02:22]} 22. Qf3 {[%clk 0:02:18]}  Qd7 {[%clk 0:02:19]} 23. c4 {[%clk 0:01:52]}  Rd3 {[%clk 0:02:14]} 24. Qe4 {[%clk 0:01:49]}  Rd4 {[%clk 0:02:12]} 25. Qc2 {[%clk 0:01:49]}  Qc6 {[%clk 0:02:04]} 26. b3 {[%clk 0:01:46]}  g6 {[%clk 0:02:00]} 27. Qc3 {[%clk 0:01:37]}  a5 {[%clk 0:01:55]} 28. a4 {[%clk 0:01:29]}  h5 {[%clk 0:01:51]} 29. Re5 {[%clk 0:01:25]}  Rd3 {[%clk 0:01:46]} 30. Qc2 {[%clk 0:01:21]}  Rd2 {[%clk 0:01:43]} 31. Qb1 {[%clk 0:01:19]}  R8d3 {[%clk 0:01:37]} 32. Qc1 {[%clk 0:01:16]}  Qd6 {[%clk 0:01:34]} 33. c5 {[%clk 0:01:04]}  Qd4 {[%clk 0:01:15]} 34. Kh1 {[%clk 0:00:20]}  Qxf2 {[%clk 0:01:06]} 35. Rg1 {[%clk 0:00:20]}  Rxg3 {[%clk 0:01:01]} 36. Qf1 {[%clk 0:00:15]}  Rh3+ {[%clk 0:01:00]} 37. gxh3 {[%clk 0:00:14]}  Qh2# {[%clk 0:01:00]} 0-1


[Site "https://www.chess.com"]

[Event "Titled Tuesday Blitz August 22 Late 2023"]
[White "Martinez Reyes, Pedro Ramon"]
[Black "Andrews, Todd"]
[WhiteFideId "3901807"]
[BlackFideId "2012456"]
[WhiteElo "2564"]
[BlackElo "2394"]
[Result "1-0"]
[Round "11"]
[TimeControl "180+1"]
[Date "2023.08.22"]
[WhiteClock "0:00:16"]
[BlackClock "0:00:00"]
[Board "77"]

1. d4 {[%clk 0:00:20]}  Nf6 {[%clk 0:02:54]} 2. c4 {[%clk 0:00:19]}  c5 {[%clk 0:02:55]} 3. d5 {[%clk 0:00:19]}  b5 {[%clk 0:02:55]} 4. cxb5 {[%clk 0:00:19]}  a6 {[%clk 0:02:56]} 5. b6 {[%clk 0:00:20]}  e6 {[%clk 0:02:56]} 6. Nc3 {[%clk 0:00:20]}  Nxd5 {[%clk 0:02:56]} 7. Nxd5 {[%clk 0:00:21]}  exd5 {[%clk 0:02:57]} 8. Qxd5 {[%clk 0:00:21]}  Nc6 {[%clk 0:02:58]} 9. Bd2 {[%clk 0:00:18]}  Be7 {[%clk 0:02:53]} 10. Bc3 {[%clk 0:00:18]}  O-O {[%clk 0:02:53]} 11. e4 {[%clk 0:00:19]}  Rb8 {[%clk 0:02:52]} 12. Bc4 {[%clk 0:00:19]}  Rxb6 {[%clk 0:02:51]} 13. Nf3 {[%clk 0:00:18]}  d6 {[%clk 0:02:52]} 14. Qh5 {[%clk 0:00:18]}  Bf6 {[%clk 0:02:26]} 15. O-O {[%clk 0:00:17]}  Bxc3 {[%clk 0:02:13]} 16. Ng5 {[%clk 0:00:17]}  h6 {[%clk 0:01:54]} 17. Nxf7 {[%clk 0:00:17]}  Rxf7 {[%clk 0:01:50]} 18. Qxf7+ {[%clk 0:00:17]}  Kh8 {[%clk 0:01:50]} 19. bxc3 {[%clk 0:00:17]}  Ne5 {[%clk 0:01:49]} 20. Qd5 {[%clk 0:00:17]}  Bb7 {[%clk 0:01:49]} 21. Qe6 {[%clk 0:00:17]}  Bc8 {[%clk 0:01:43]} 22. Qd5 {[%clk 0:00:17]}  Bb7 {[%clk 0:01:31]} 23. Qe6 {[%clk 0:00:17]}  Bxe4 {[%clk 0:01:31]} 24. Rfe1 {[%clk 0:00:16]}  Bb7 {[%clk 0:01:08]} 25. Rad1 {[%clk 0:00:16]}  Nxc4 {[%clk 0:00:49]} 26. Qxc4 {[%clk 0:00:15]}  d5 {[%clk 0:00:40]} 27. Qe2 {[%clk 0:00:15]}  Rg6 {[%clk 0:00:30]} 28. Qe8+ {[%clk 0:00:15]}  Qxe8 {[%clk 0:00:31]} 29. Rxe8+ {[%clk 0:00:15]}  Kh7 {[%clk 0:00:32]} 30. Re7 {[%clk 0:00:16]}  Bc6 {[%clk 0:00:31]} 31. f3 {[%clk 0:00:17]}  d4 {[%clk 0:00:21]} 32. Kf2 {[%clk 0:00:14]}  dxc3 {[%clk 0:00:18]} 33. Rc1 {[%clk 0:00:15]}  Bd5 {[%clk 0:00:18]} 34. Rxc3 {[%clk 0:00:15]}  Bxa2 {[%clk 0:00:18]} 35. Rxc5 {[%clk 0:00:14]}  Bb3 {[%clk 0:00:18]} 36. Rcc7 {[%clk 0:00:14]}  a5 {[%clk 0:00:17]} 37. Ra7 {[%clk 0:00:15]}  a4 {[%clk 0:00:18]} 38. g4 {[%clk 0:00:16]}  Rg5 {[%clk 0:00:15]} 39. h4 {[%clk 0:00:16]}  Rg6 {[%clk 0:00:16]} 40. Kg3 {[%clk 0:00:16]}  Bd1 {[%clk 0:00:14]} 41. Kf2 {[%clk 0:00:16]}  Kh8 {[%clk 0:00:12]} 42. Red7 {[%clk 0:00:16]}  Bb3 {[%clk 0:00:11]} 43. Kg3 {[%clk 0:00:15]}  Kh7 {[%clk 0:00:09]} 44. h5 {[%clk 0:00:16]}  Rg5 {[%clk 0:00:10]} 45. f4 {[%clk 0:00:16]}  Rc5 {[%clk 0:00:05]} 46. Rxg7+ {[%clk 0:00:16]}  Kh8 {[%clk 0:00:05]} 47. Rh7+ {[%clk 0:00:16]}  Kg8 {[%clk 0:00:05]} 48. Rhb7 {[%clk 0:00:17]}  Rc8 {[%clk 0:00:05]} 49. Rb6 {[%clk 0:00:15]}  Bf7 {[%clk 0:00:03]} 50. Rxh6 {[%clk 0:00:15]}  Kg7 {[%clk 0:00:03]} 51. Rha6 {[%clk 0:00:15]}  Rc3+ {[%clk 0:00:01]} 52. Kh4 {[%clk 0:00:15]}  Ra3 {[%clk 0:00:02]} 53. Kg5 {[%clk 0:00:15]}  Ra1 {[%clk 0:00:02]} 54. f5 {[%clk 0:00:15]}  Kf8 {[%clk 0:00:02]} 55. h6 {[%clk 0:00:16]}  a3 {[%clk 0:00:02]} 56. Kf6 {[%clk 0:00:16]}  a2 {[%clk 0:00:00]} 57. Rxf7+ {[%clk 0:00:16]} 1-0


[Site "https://www.chess.com"]